[Event "Turkish Super League 2019"]
[Site "Konya"]
[Date "2019.07.20"]
[Round "4"]
[White "Kamer, Kayra"]
[Black "Unat, Can Haktan"]
[Result "1-0"]
[ECO "D76"]
[WhiteElo "2340"]
[BlackElo "2034"]
[Annotator "NA"]
[PlyCount "113"]
[EventDate "2019.07.17"]
[EventType "team-tourn"]
[EventCountry "TUR"]
[SourceTitle "playchess.com"]
[Source "ChessBase"]
[SourceQuality "1"]
[TimeControl "40/5400+30:1800+30"]

1. Nf3 Nf6 2. c4 g6 3. g3 Bg7 4. Bg2 O-O 5. O-O d5 6. cxd5 Nxd5 7. d4 Nb6 8. Nc3 Nc6 9. d5 Nb4 10. e4 c6 11. Qb3 Nd3 12. Be3 Nxb2 13. Qxb2 Na4 14. Nxa4 Bxb2 15. Nxb2 cxd5 16. Rfd1 Qa5 17. Rxd5 Qb4 18. Nd3 Qxe4 19. Nfe5 Qa4 20. Nc5 Qe8 21. Bh6 Be6 22. Rdd1 Qb5 23. Nxe6 fxe6 24. Bxf8 Rxf8 25. Nd3 b6 26. Nf4 Rf6 27. Rd2 g5 28. Rd8+ Kf7 29. Nd3 Qa5 30. Be4 e5 31. Bd5+ Kg7 32. Nxe5 e6 33. Rd7+ Kh8 34. Rc1 Rf8 35. Nf7+ Kg7 36. Nxg5+ Kh6 {[%emt 1:30:23]} 37. Nxe6 {[%emt 0:49:30]} Rxf2 {[%emt 0:00:30]} 38. Kxf2 {[%emt 0:00:30]} Qd2+ {[%emt 0:00:30]} 39. Kf3 {[%emt 0:00:30]} Qxc1 {[%emt 0:00:30]} 40. Be4 {[%emt 0:00:30]} Qf1+ {[%emt 0:00:30]} 41. Kg4 {[%emt 0:30:30]} Qe2+ {[%emt 0:30:30]} 42. Kf5 {[%emt 0:00:00]} Qb5+ {[%emt 0:00:00]} 43. Rd5 {[%emt 0:00:00]} Qf1+ {[%emt 0:00:00]} 44. Nf4 {[%emt 0:00:00]} Kg7 {[%emt 0:00:00]} 45. Rd7+ {[%emt 0:00:00]} Kf8 {[%emt 0:00:00]} 46. Rxh7 {[%emt 0:00:00]} Qb5+ {[%emt 0:00:00]} 47. Bd5 {[%emt 0:00:00]} Qb1+ {[%emt 0:00:00]} 48. Kf6 {[%emt 0:00:00]} Qa1+ {[%emt 0:00:00]} 49. Ke6 {[%emt 0:00:00]} Qe1+ {[%emt 0:00:00]} 50. Kd7 {[%emt 0:00:00]} Qe8+ {[%emt 0:00:00]} 51. Kc7 {[%emt 0:00:00]} Qe5+ {[%emt 0:00:00]} 52. Kb7 {[%emt 0:00:00]} Qd6 {[%emt 0:00:00]} 53. Rf7+ {[%emt 0:00:00]} Ke8 {[%emt 0:00:00]} 54. Rc7 {[%emt 0:00:00]} Kf8 {[%emt 0:00:00]} 55. Bf7 {[%emt 0:00:00]} Kg7 {[%emt 0:00:00]} 56. Bc4+ {[%emt 0:00:00]} Kh8 {[%emt 0:00:00]} 57. Be6 {[%emt 0:00:00]} 1-0

[Event "Turkish Super League 2019"]
[Site "Konya"]
[Date "2019.07.20"]
[Round "4"]
[White "Maltsevskaya, Aleksandra"]
[Black "Osmak, Iulija"]
[Result "1/2-1/2"]
[ECO "E12"]
[WhiteElo "2294"]
[BlackElo "2395"]
[Annotator "NA"]
[PlyCount "60"]
[EventDate "2019.07.17"]
[EventType "team-tourn"]
[EventCountry "TUR"]
[SourceTitle "playchess.com"]
[Source "ChessBase"]
[SourceQuality "1"]
[TimeControl "40/5400+30:1800+30"]

1. d4 Nf6 2. Nf3 e6 3. c4 b6 4. a3 Bb7 5. Nc3 Ne4 6. Nxe4 Bxe4 7. Nd2 Bg6 8. b3 c5 9. dxc5 Bxc5 10. Bb2 O-O 11. g3 Nc6 12. Bg2 d5 13. O-O Rc8 14. b4 Bd4 15. Bxd4 Nxd4 16. e3 Bc2 17. Qg4 Nc6 18. cxd5 Ne7 {[%emt 1:08:00]} 19. Nf3 {[%emt 1:12:30]} Nxd5 {[%emt 0:00:30]} 20. Nd4 {[%emt 0:00:30]} Nf6 {[%emt 0:06:30]} 21. Qe2 {[%emt 0:11:25]} Be4 {[%emt 0:01:30]} 22. Rfd1 {[%emt 0:00:19]} Bxg2 {[%emt 0:04:43]} 23. Kxg2 {[%emt 0:00:05]} Qd5+ {[%emt 0:01:31]} 24. Qf3 {[%emt 0:01:17]} Qc4 {[%emt 0:02:22]} 25. Rdc1 {[%emt 0:05:00]} Qd3 {[%emt 0:04:41]} 26. Rd1 {[%emt 0:05:53]} Qc4 {[%emt 0:03:28]} 27. Rdc1 {[%emt 0:00:07]} Qd3 {[%emt 0:00:00]} 28. Rd1 {[%emt 0:00:08]} Qc4 {[%emt 0:00:04]} 29. Rdc1 {[%emt 0:00:08]} Qd3 {[%emt 0:00:32]} 30. Rd1 {[%emt 0:00:30]} Qc4 {[%emt 0:00:00]} 1/2-1/2

[Event "Turkish Super League 2019"]
[Site "Konya"]
[Date "2019.07.20"]
[Round "4"]
[White "Samani, Yamac"]
[Black "Yuksel, Atilla Koksal"]
[Result "1/2-1/2"]
[ECO "B22"]
[WhiteElo "2266"]
[BlackElo "2241"]
[Annotator "NA"]
[PlyCount "95"]
[EventDate "2019.07.17"]
[EventType "team-tourn"]
[EventCountry "TUR"]
[SourceTitle "playchess.com"]
[Source "ChessBase"]
[SourceQuality "1"]
[TimeControl "40/5400+30:1800+30"]

1. e4 c5 2. Nf3 Nc6 3. c3 d5 4. exd5 Qxd5 5. d4 Bg4 6. Be2 e6 7. h3 Bh5 8. c4 Qd7 9. g4 Bg6 10. d5 exd5 11. cxd5 Nb4 12. Ne5 Qxd5 13. O-O O-O-O 14. Qxd5 Rxd5 15. Nxg6 hxg6 16. Nc3 Rd7 17. Bb5 Rd8 18. Bf4 Rxh3 19. Rad1 Be7 {[%emt 1:26:48]} 20. Rxd8+ {[%emt 0:52:00]} Bxd8 {[%emt 0:00:30]} 21. Rd1 {[%emt 0:00:30]} Nc6 {[%emt 0:00:30]} 22. Kg2 {[%emt 0:06:30]} Rh8 {[%emt 0:00:46]} 23. Bc4 {[%emt 0:14:30]} g5 {[%emt 0:02:20]} 24. Bg3 {[%emt 0:01:30]} Nh6 {[%emt 0:01:39]} 25. f3 {[%emt 0:05:30]} Bc7 {[%emt 0:02:13]} 26. Rd5 {[%emt 0:03:45]} Rd8 {[%emt 0:02:12]} 27. Bxc7 {[%emt 0:00:45]} Kxc7 {[%emt 0:00:30]} 28. Rxg5 {[%emt 0:00:00]} Rd2+ {[%emt 0:01:08]} 29. Kg3 {[%emt 0:00:17]} g6 {[%emt 0:00:29]} 30. Rxc5 {[%emt 0:00:40]} Rxb2 {[%emt 0:00:43]} 31. Kf4 {[%emt 0:04:39]} Kd6 {[%emt 0:04:22]} 32. Ne4+ {[%emt 0:03:09]} Ke7 {[%emt 0:00:11]} 33. Bd5 {[%emt 0:01:11]} Rb6 {[%emt 0:00:36]} 34. Kg5 {[%emt 0:06:45]} Ng8 {[%emt 0:00:06]} 35. Bb3 {[%emt 0:00:09]} Ra6 {[%emt 0:01:30]} 36. Kf4 {[%emt 0:03:17]} Nf6 {[%emt 0:00:34]} 37. Ng5 {[%emt 0:00:25]} Nd7 {[%emt 0:00:24]} 38. Rc1 {[%emt 0:01:10]} Nd8 {[%emt 0:00:53]} 39. Re1+ {[%emt 0:00:40]} Ne6+ {[%emt 0:00:34]} 40. Nxe6 {[%emt 0:00:50]} fxe6 {[%emt 0:00:00]} 41. Kg5 {[%emt 0:04:18]} Nf8 {[%emt 0:03:32]} 42. f4 {[%emt 0:01:30]} Kf7 {[%emt 0:11:39]} 43. Re5 {[%emt 0:08:05]} Nh7+ {[%emt 0:02:00]} 44. Kh6 {[%emt 0:00:28]} Nf6 {[%emt 0:01:41]} 45. Kg5 {[%emt 0:06:18]} Nh7+ {[%emt 0:01:12]} 46. Kh6 {[%emt 0:00:17]} Nf6 {[%emt 0:01:59]} 47. Kg5 {[%emt 0:00:08]} Nh7+ {[%emt 0:06:17]} 48. Kh6 {[%emt 0:00:36]} 1/2-1/2

[Event "Turkish Super League 2019"]
[Site "Konya"]
[Date "2019.07.20"]
[Round "4"]
[White "Uysal, Burak"]
[Black "Sevgi, Volkan"]
[Result "0-1"]
[ECO "B31"]
[WhiteElo "2228"]
[BlackElo "2302"]
[Annotator "NA"]
[PlyCount "62"]
[EventDate "2019.07.17"]
[EventType "team-tourn"]
[EventCountry "TUR"]
[SourceTitle "playchess.com"]
[Source "ChessBase"]
[SourceQuality "1"]
[TimeControl "40/5400+30:1800+30"]

1. e4 c5 2. Nf3 Nc6 3. Bb5 g6 4. Bxc6 bxc6 5. O-O Bg7 6. Re1 Nh6 7. c3 O-O 8. d4 cxd4 9. cxd4 d5 10. e5 f6 11. h3 Nf7 12. Nc3 Rb8 13. Qa4 fxe5 14. Qxa7 Rb7 15. Qc5 e4 16. Nh2 Qd6 17. Na4 Rb4 18. Qc2 Bxd4 19. Be3 Ne5 {[%emt 0:54:30]} 20. Rad1 {[%emt 1:25:52]} Nd3 {[%emt 0:00:30]} 21. Re2 {[%emt 0:00:25]} Bxe3 {[%emt 0:09:30]} 22. fxe3 {[%emt 0:01:02]} Rc4 {[%emt 0:03:30]} 23. Nc3 {[%emt 0:00:53]} Bxh3 {[%emt 0:00:30]} 24. Rxd3 {[%emt 0:04:48]} exd3 {[%emt 0:01:30]} 25. Qxd3 {[%emt 0:00:05]} Bf5 {[%emt 0:00:30]} 26. Qd1 {[%emt 0:01:52]} Bg4 {[%emt 0:01:30]} 27. Nxg4 {[%emt 0:03:14]} Rxg4 {[%emt 0:00:30]} 28. e4 {[%emt 0:00:16]} Qc5+ {[%emt 0:00:30]} 29. Kh2 {[%emt 0:00:21]} d4 {[%emt 0:00:30]} 30. Na4 {[%emt 0:04:06]} Qh5+ {[%emt 0:00:00]} 31. Kg1 {[%emt 0:00:20]} Rh4 {[%emt 0:00:00]} 0-1

[Event "Turkish Super League 2019"]
[Site "Konya"]
[Date "2019.07.20"]
[Round "4"]
[White "Yaran, Siar"]
[Black "Akdogan, Alperen"]
[Result "1/2-1/2"]
[ECO "A14"]
[WhiteElo "2197"]
[BlackElo "2193"]
[Annotator "NA"]
[PlyCount "100"]
[EventDate "2019.07.17"]
[EventType "team-tourn"]
[EventCountry "TUR"]
[SourceTitle "playchess.com"]
[Source "ChessBase"]
[SourceQuality "1"]
[TimeControl "40/5400+30:1800+30"]

1. g3 Nf6 2. Bg2 d5 3. Nf3 e6 4. O-O Be7 5. b3 O-O 6. Bb2 b6 7. c4 Bb7 8. e3 c5 9. Nc3 Nbd7 10. Qe2 Ne4 11. Rfd1 Bf6 12. cxd5 exd5 13. d4 Qe7 14. Rac1 Rfd8 15. dxc5 Ndxc5 16. Nd4 g6 17. Qe1 a6 18. Nde2 {[%emt 1:03:00]} Ne6 {[%emt 1:18:00]} 19. Rc2 {[%emt 0:08:30]} Bg7 {[%emt 0:04:53]} 20. Na4 {[%emt 0:19:58]} Bxb2 {[%emt 0:01:18]} 21. Nxb2 {[%emt 0:01:40]} Rac8 {[%emt 0:06:27]} 22. Rxc8 {[%emt 0:04:41]} Rxc8 {[%emt 0:00:18]} 23. Rc1 {[%emt 0:02:08]} Rd8 {[%emt 0:02:41]} 24. Na4 {[%emt 0:00:39]} b5 {[%emt 0:04:09]} 25. Nac3 {[%emt 0:00:00]} Qb4 {[%emt 0:02:38]} 26. Kf1 {[%emt 0:00:31]} Rc8 {[%emt 0:00:30]} 27. Nxe4 {[%emt 0:00:30]} Qxe1+ {[%emt 0:00:30]} 28. Kxe1 {[%emt 0:00:30]} Rxc1+ {[%emt 0:00:30]} 29. Nxc1 {[%emt 0:00:30]} dxe4 {[%emt 0:00:30]} 30. b4 {[%emt 0:00:05]} Kf8 {[%emt 0:01:18]} 31. Kd2 {[%emt 0:01:08]} Ke7 {[%emt 0:00:08]} 32. Kc3 {[%emt 0:00:23]} Kd6 {[%emt 0:00:12]} 33. Nb3 {[%emt 0:01:13]} f5 {[%emt 0:01:36]} 34. a3 {[%emt 0:00:47]} Ke5 {[%emt 0:00:45]} 35. h4 {[%emt 0:00:32]} Bd5 {[%emt 0:00:26]} 36. Nd2 {[%emt 0:00:39]} h6 {[%emt 0:00:07]} 37. Bf1 {[%emt 0:00:06]} g5 {[%emt 0:00:54]} 38. hxg5 {[%emt 0:00:30]} hxg5 {[%emt 0:00:00]} 39. a4 {[%emt 0:00:27]} Nc7 {[%emt 0:00:00]} 40. axb5 {[%emt 0:00:00]} axb5 {[%emt 0:00:00]} 41. Nb1 {[%emt 0:08:03]} Be6 {[%emt 0:06:40]} 42. Kb2 {[%emt 0:05:20]} Nd5 {[%emt 0:02:30]} 43. Ka3 {[%emt 0:00:06]} Bd7 {[%emt 0:01:30]} 44. Kb3 {[%emt 0:00:39]} f4 {[%emt 0:06:17]} 45. Nc3 {[%emt 0:06:24]} Nxc3 {[%emt 0:14:01]} 46. Kxc3 {[%emt 0:01:02]} f3 {[%emt 0:00:18]} 47. Kb2 {[%emt 0:01:31]} g4 {[%emt 0:00:26]} 48. Kc3 {[%emt 0:00:52]} Kd5 {[%emt 0:00:13]} 49. Kb3 {[%emt 0:00:36]} Kc6 {[%emt 0:01:28]} 50. Kc3 {[%emt 0:02:12]} Kd5 {[%emt 0:00:27]} 1/2-1/2

[Event "Turkish Super League 2019"]
[Site "Konya"]
[Date "2019.07.20"]
[Round "4"]
[White "Aydin, Hakan Arda"]
[Black "Tasdogen, Dincer"]
[Result "0-1"]
[ECO "B06"]
[WhiteElo "1956"]
[BlackElo "2310"]
[Annotator "NA"]
[PlyCount "64"]
[EventDate "2019.07.17"]
[EventType "team-tourn"]
[EventCountry "TUR"]
[SourceTitle "playchess.com"]
[Source "ChessBase"]
[SourceQuality "1"]
[TimeControl "40/5400+30:1800+30"]

1. e4 g6 2. d4 Bg7 3. Nc3 d5 4. exd5 Nf6 5. Be3 Nbd7 6. g3 Nb6 7. Bg2 Nbxd5 8. Nxd5 Nxd5 9. Ne2 Nxe3 10. fxe3 c6 11. O-O h5 12. Qd3 h4 13. Qb3 Bf6 14. e4 Bxd4+ 15. Kh1 Be6 16. Qxb7 hxg3 17. Nxg3 Kf8 18. Rad1 Kg7 {[%emt 0:56:00]} 19. Ne2 {[%emt 1:24:00]} Qd6 {[%emt 0:00:30]} 20. Nf4 {[%emt 0:00:30]} Rxh2+ {[%emt 0:00:30]} 21. Kxh2 {[%emt 0:00:30]} Rh8+ {[%emt 0:00:30]} 22. Kg3 {[%emt 0:00:30]} g5 {[%emt 0:00:30]} 23. Rxd4 {[%emt 0:04:51]} gxf4+ {[%emt 0:00:30]} 24. Rxf4 {[%emt 0:00:45]} Qxd4 {[%emt 0:00:30]} 25. Qxe7 {[%emt 0:00:11]} Rh6 {[%emt 0:04:30]} 26. Qa3 {[%emt 0:02:32]} Qg1 {[%emt 0:02:30]} 27. Qc3+ {[%emt 0:00:25]} Kg8 {[%emt 0:00:30]} 28. Kf3 {[%emt 0:02:57]} Rg6 {[%emt 0:15:30]} 29. Qd2 {[%emt 0:00:41]} Bh3 {[%emt 0:00:30]} 30. Qd8+ {[%emt 0:00:57]} Kg7 {[%emt 0:00:30]} 31. Bxh3 {[%emt 0:03:45]} Rg3+ {[%emt 0:00:00]} 32. Ke2 {[%emt 0:00:20]} Re3+ {[%emt 0:00:00]} 0-1

[Event "Turkish Super League 2019"]
[Site "Konya"]
[Date "2019.07.21"]
[Round "5"]
[White "Mamedov, Rauf"]
[Black "Abasov, Nijat"]
[Result "1/2-1/2"]
[ECO "B52"]
[WhiteElo "2650"]
[BlackElo "2641"]
[Annotator "ChessBase"]
[PlyCount "94"]
[EventDate "2019.07.17"]
[EventType "team-tourn"]
[EventCountry "TUR"]
[SourceTitle "playchess.com"]
[Source "ChessBase"]
[SourceQuality "1"]
[TimeControl "40/5400+30:1800+30"]

1. e4 c5 2. Nf3 d6 3. Bb5+ Bd7 4. Bxd7+ Nxd7 5. O-O Ngf6 6. Qe2 Rc8 7. b3 g6 8. Bb2 e5 9. Na3 Bg7 {[%emt 0:21:30]} 10. Nb5 {[%emt 0:41:00]} Qb6 {[%emt 0:00:30]} 11. Qd3 {[%emt 0:00:30]} Nxe4 {[%emt 0:08:30]} 12. Rae1 {[%emt 0:07:30]} c4 {[%emt 0:01:30]} 13. bxc4 {[%emt 0:06:30]} Ndc5 {[%emt 0:01:30]} 14. Qa3 {[%emt 0:13:30]} a6 {[%emt 0:01:30]} 15. Nc3 {[%emt 0:00:30]} Nxc3 {[%emt 0:00:30]} 16. Bxc3 {[%emt 0:00:30]} O-O {[%emt 0:00:00]} 17. d3 {[%emt 0:03:30]} Qc6 {[%emt 0:07:00]} 18. Nd2 {[%emt 0:08:03]} Rfe8 {[%emt 0:05:30]} 19. Nb3 {[%emt 0:01:48]} Ne6 {[%emt 0:09:30]} 20. Bd2 {[%emt 0:00:32]} d5 {[%emt 0:05:30]} 21. Be3 {[%emt 0:00:54]} Bf8 {[%emt 0:04:30]} 22. cxd5 {[%emt 0:02:10]} Qxd5 {[%emt 0:03:30]} 23. Qb2 {[%emt 0:01:04]} Bb4 {[%emt 0:01:30]} 24. Rd1 {[%emt 0:04:18]} Bc3 {[%emt 0:00:30]} 25. Qc1 {[%emt 0:04:00]} Nd4 {[%emt 0:05:30]} 26. Kh1 {[%emt 0:02:00]} b5 {[%emt 0:02:30]} 27. Bh6 {[%emt 0:02:42]} a5 {[%emt 0:01:30]} 28. Qb1 {[%emt 0:01:57]} Rc6 {[%emt 0:03:40]} 29. Be3 {[%emt 0:00:28]} f5 {[%emt 0:03:30]} 30. Bd2 {[%emt 0:00:51]} b4 {[%emt 0:06:42]} 31. Rfe1 {[%emt 0:00:08]} Rec8 {[%emt 0:03:07]} 32. Bxc3 {[%emt 0:00:42]} Rxc3 {[%emt 0:00:30]} 33. Nxd4 {[%emt 0:00:30]} Qxd4 {[%emt 0:00:00]} 34. Re2 {[%emt 0:00:00]} Kg7 {[%emt 0:00:48]} 35. Rde1 {[%emt 0:00:14]} R8c5 {[%emt 0:00:15]} 36. h3 {[%emt 0:01:14]} h6 {[%emt 0:01:04]} 37. Qd1 {[%emt 0:00:47]} Kf6 {[%emt 0:01:50]} 38. Qc1 {[%emt 0:00:26]} g5 {[%emt 0:01:40]} 39. Qd1 {[%emt 0:00:02]} Kg6 {[%emt 0:00:24]} 40. Kg1 {[%emt 0:00:00]} h5 {[%emt 0:00:00]} 41. Rd2 {[%emt 0:10:10]} a4 {[%emt 0:06:30]} 42. Re4 {[%emt 0:06:44]} fxe4 {[%emt 0:03:30]} 43. dxe4 {[%emt 0:00:28]} Rxc2 {[%emt 0:03:30]} 44. Rxd4 {[%emt 0:00:05]} Rc1 {[%emt 0:00:30]} 45. Rd6+ {[%emt 0:00:30]} Kf7 {[%emt 0:00:30]} 46. Rd7+ {[%emt 0:00:30]} Ke6 {[%emt 0:00:30]} 47. Rd6+ {[%emt 0:00:30]} Ke7 {[%emt 0:00:00]} 1/2-1/2

[Event "Turkish Super League 2019"]
[Site "Konya"]
[Date "2019.07.21"]
[Round "5"]
[White "Sarana, Alexey"]
[Black "Soysal, Serkan"]
[Result "1/2-1/2"]
[ECO "D17"]
[WhiteElo "2640"]
[BlackElo "2431"]
[Annotator "ChessBase"]
[PlyCount "81"]
[EventDate "2019.07.17"]
[EventType "team-tourn"]
[EventCountry "TUR"]
[SourceTitle "playchess.com"]
[Source "ChessBase"]
[SourceQuality "1"]
[TimeControl "40/5400+30:1800+30"]

1. d4 d5 2. c4 c6 3. Nf3 Nf6 4. Nc3 dxc4 5. a4 Bf5 6. Ne5 Nbd7 7. Nxc4 Nb6 8. e3 Nxc4 9. Bxc4 e6 10. f3 Bg6 11. e4 Bb4 12. O-O O-O 13. Be3 a5 14. Ne2 Nd7 15. Nf4 e5 16. dxe5 Nxe5 17. Be2 Qe7 18. Qc2 {[%emt 0:19:00]} f5 {[%emt 0:44:00]} 19. Rad1 {[%emt 0:15:30]} Bf7 {[%emt 0:10:30]} 20. Nd3 {[%emt 0:03:30]} fxe4 {[%emt 0:09:30]} 21. Nxb4 {[%emt 0:02:30]} Qxb4 {[%emt 0:00:30]} 22. Rd4 {[%emt 0:07:30]} Qe7 {[%emt 0:05:30]} 23. fxe4 {[%emt 0:08:30]} Be6 {[%emt 0:07:30]} 24. Rdd1 {[%emt 0:10:30]} Rxf1+ {[%emt 0:04:30]} 25. Rxf1 {[%emt 0:00:30]} Qb4 {[%emt 0:02:08]} 26. Bc5 {[%emt 0:01:30]} Bb3 {[%emt 0:05:44]} 27. Bxb4 {[%emt 0:02:30]} Bxc2 {[%emt 0:00:02]} 28. Bd6 {[%emt 0:00:30]} Bd3 {[%emt 0:04:20]} 29. Bxd3 {[%emt 0:00:30]} Nxd3 {[%emt 0:00:01]} 30. b3 {[%emt 0:03:30]} Re8 {[%emt 0:02:36]} 31. Rf3 {[%emt 0:05:30]} Ne5 {[%emt 0:00:44]} 32. Rf5 {[%emt 0:02:30]} Nf7 {[%emt 0:00:19]} 33. Bg3 {[%emt 0:00:00]} Rxe4 {[%emt 0:05:31]} 34. Rxa5 {[%emt 0:00:00]} g5 {[%emt 0:00:54]} 35. Ra8+ {[%emt 0:00:30]} Kg7 {[%emt 0:00:30]} 36. Rb8 {[%emt 0:00:00]} Re7 {[%emt 0:00:00]} 37. a5 {[%emt 0:01:00]} Kf6 {[%emt 0:00:36]} 38. h4 {[%emt 0:00:30]} h6 {[%emt 0:00:09]} 39. b4 {[%emt 0:00:30]} Kf5 {[%emt 0:00:41]} 40. Bf2 {[%emt 0:00:00]} Ne5 {[%emt 0:00:00]} 41. hxg5 {[%emt 0:03:00]} 1/2-1/2

[Event "Turkish Super League 2019"]
[Site "Konya"]
[Date "2019.07.21"]
[Round "5"]
[White "Kravtsiv, Martyn"]
[Black "Rakhmanov, Aleksandr"]
[Result "1-0"]
[ECO "B29"]
[WhiteElo "2628"]
[BlackElo "2615"]
[Annotator "ChessBase"]
[PlyCount "101"]
[EventDate "2019.07.17"]
[EventType "team-tourn"]
[EventCountry "TUR"]
[SourceTitle "playchess.com"]
[Source "ChessBase"]
[SourceQuality "1"]
[TimeControl "40/5400+30:1800+30"]

1. e4 c5 2. Nf3 Nf6 3. Nc3 Nc6 4. d4 d5 5. exd5 Nxd5 6. Bb5 Bg4 7. h3 Bh5 8. dxc5 Nxc3 9. Qxd8+ Rxd8 10. bxc3 {[%emt 0:33:00]} Bxf3 {[%emt 0:31:00]} 11. gxf3 {[%emt 0:00:30]} e6 {[%emt 0:04:30]} 12. Be3 {[%emt 0:12:30]} Be7 {[%emt 0:01:30]} 13. Ke2 {[%emt 0:02:30]} Kd7 {[%emt 0:13:30]} 14. Rab1 {[%emt 0:04:30]} Kc7 {[%emt 0:02:30]} 15. Rb3 {[%emt 0:08:30]} Rd5 {[%emt 0:02:30]} 16. Rhb1 {[%emt 0:07:30]} Rb8 {[%emt 0:01:30]} 17. Bf4+ {[%emt 0:05:30]} e5 {[%emt 0:01:30]} 18. Be3 {[%emt 0:00:00]} f5 {[%emt 0:03:30]} 19. f4 {[%emt 0:03:00]} Bf6 {[%emt 0:12:30]} 20. fxe5 {[%emt 0:03:10]} Bxe5 {[%emt 0:00:30]} 21. f4 {[%emt 0:00:25]} Bf6 {[%emt 0:00:30]} 22. Kf3 {[%emt 0:01:30]} Rd7 {[%emt 0:02:30]} 23. Ra3 {[%emt 0:04:48]} Ra8 {[%emt 0:01:30]} 24. Rab3 {[%emt 0:00:11]} Rb8 {[%emt 0:00:30]} 25. a4 {[%emt 0:03:17]} Re7 {[%emt 0:00:30]} 26. Bxc6 {[%emt 0:01:20]} Kxc6 {[%emt 0:00:30]} 27. a5 {[%emt 0:00:00]} Rbe8 {[%emt 0:05:55]} 28. Bf2 {[%emt 0:00:32]} Re2 {[%emt 0:07:16]} 29. Rxb7 {[%emt 0:01:53]} Rxc2 {[%emt 0:04:32]} 30. Rxa7 {[%emt 0:00:06]} Rxc3+ {[%emt 0:01:32]} 31. Kg2 {[%emt 0:00:01]} Rc2 {[%emt 0:01:54]} 32. Ra6+ {[%emt 0:01:41]} Kd5 {[%emt 0:01:05]} 33. Rb4 {[%emt 0:01:19]} Rd8 {[%emt 0:01:54]} 34. Rxf6 {[%emt 0:03:56]} Rxf2+ {[%emt 0:00:30]} 35. Kxf2 {[%emt 0:00:30]} gxf6 {[%emt 0:00:00]} 36. Rb6 {[%emt 0:01:16]} Kxc5 {[%emt 0:00:23]} 37. Rxf6 {[%emt 0:00:02]} Kd4 {[%emt 0:00:35]} 38. Kg3 {[%emt 0:03:34]} Rd5 {[%emt 0:01:37]} 39. a6 {[%emt 0:00:30]} Ra5 {[%emt 0:00:00]} 40. Kh4 {[%emt 0:00:00]} Ra3 {[%emt 0:00:00]} 41. Kg5 {[%emt 0:03:59]} Rxh3 {[%emt 0:02:17]} 42. Kxf5 {[%emt 0:03:30]} Rh5+ {[%emt 0:06:30]} 43. Kg4 {[%emt 0:00:30]} Rh1 {[%emt 0:01:30]} 44. a7 {[%emt 0:04:30]} Ra1 {[%emt 0:00:30]} 45. Rf7 {[%emt 0:01:30]} h6 {[%emt 0:01:30]} 46. Re7 {[%emt 0:00:30]} Kd5 {[%emt 0:02:39]} 47. f5 {[%emt 0:00:30]} Ra5 {[%emt 0:02:05]} 48. f6 {[%emt 0:00:30]} Kd6 {[%emt 0:00:11]} 49. Kh4 {[%emt 0:00:30]} h5 {[%emt 0:00:04]} 50. Rb7 {[%emt 0:01:30]} Kc6 {[%emt 0:00:42]} 51. Rh7 {[%emt 0:00:00]} 1-0

[Event "Turkish Super League 2019"]
[Site "Konya"]
[Date "2019.07.21"]
[Round "5"]
[White "Safarli, Eltaj"]
[Black "Arat, Ufuk Sezen"]
[Result "0-1"]
[ECO "C43"]
[WhiteElo "2608"]
[BlackElo "2376"]
[Annotator "ChessBase"]
[PlyCount "90"]
[EventDate "2019.07.17"]
[EventType "team-tourn"]
[EventCountry "TUR"]
[SourceTitle "playchess.com"]
[Source "ChessBase"]
[SourceQuality "1"]
[TimeControl "40/5400+30:1800+30"]

1. e4 e5 2. Nf3 Nf6 3. d4 Nxe4 4. Bd3 d5 5. dxe5 Nc5 6. Be2 Be7 7. O-O O-O 8. Be3 c6 9. c4 dxc4 10. Qxd8 Rxd8 11. Bxc5 Bxc5 12. Bxc4 Be7 13. Nbd2 Bf5 14. Nb3 {[%emt 0:34:00]} Nd7 {[%emt 0:40:00]} 15. Nfd4 {[%emt 0:06:30]} Bg6 {[%emt 0:00:30]} 16. f4 {[%emt 0:17:30]} Nb6 {[%emt 0:02:30]} 17. Be2 {[%emt 0:02:30]} Be4 {[%emt 0:01:30]} 18. Bf3 {[%emt 0:00:30]} Bxf3 {[%emt 0:01:30]} 19. Nxf3 {[%emt 0:00:00]} Nc4 {[%emt 0:01:30]} 20. Rf2 {[%emt 0:02:00]} a5 {[%emt 0:02:30]} 21. Rc2 {[%emt 0:02:30]} b5 {[%emt 0:03:30]} 22. Nbd2 {[%emt 0:12:30]} Nxd2 {[%emt 0:08:30]} 23. Nxd2 {[%emt 0:03:30]} a4 {[%emt 0:01:30]} 24. Ne4 {[%emt 0:05:10]} Rd4 {[%emt 0:00:30]} 25. Re1 {[%emt 0:00:22]} c5 {[%emt 0:04:30]} 26. f5 {[%emt 0:03:33]} c4 {[%emt 0:03:30]} 27. f6 {[%emt 0:01:44]} Bf8 {[%emt 0:05:30]} 28. fxg7 {[%emt 0:01:57]} Bxg7 {[%emt 0:01:30]} 29. Nf6+ {[%emt 0:00:04]} Bxf6 {[%emt 0:05:30]} 30. exf6 {[%emt 0:00:01]} Rd6 {[%emt 0:01:16]} 31. Re5 {[%emt 0:02:21]} Rb8 {[%emt 0:00:26]} 32. Rf2 {[%emt 0:02:09]} h6 {[%emt 0:03:20]} 33. g4 {[%emt 0:01:16]} b4 {[%emt 0:08:08]} 34. Rc5 {[%emt 0:01:02]} c3 {[%emt 0:01:26]} 35. Rc4 {[%emt 0:04:30]} Rd1+ {[%emt 0:03:26]} 36. Kg2 {[%emt 0:00:01]} Rc1 {[%emt 0:00:10]} 37. b3 {[%emt 0:02:16]} axb3 {[%emt 0:00:40]} 38. axb3 {[%emt 0:00:02]} Rb1 {[%emt 0:00:04]} 39. Rf5 {[%emt 0:00:57]} Rb2+ {[%emt 0:02:12]} 40. Kg3 {[%emt 0:00:47]} Rxb3 {[%emt 0:00:00]} 41. Rfc5 {[%emt 0:01:48]} Ra3 {[%emt 0:08:52]} 42. Kh4 {[%emt 0:01:30]} Raa8 {[%emt 0:04:30]} 43. Kh5 {[%emt 0:13:01]} b3 {[%emt 0:02:30]} 44. Kxh6 {[%emt 0:00:14]} b2 {[%emt 0:00:30]} 45. Rg5+ {[%emt 0:00:32]} Kh8 {[%emt 0:03:41]} 0-1

[Event "Turkish Super League 2019"]
[Site "Konya"]
[Date "2019.07.21"]
[Round "5"]
[White "Rozum, Ivan"]
[Black "Ertan, Can"]
[Result "1-0"]
[ECO "D35"]
[WhiteElo "2583"]
[BlackElo "2396"]
[Annotator "ChessBase"]
[PlyCount "71"]
[EventDate "2019.07.17"]
[EventType "team-tourn"]
[EventCountry "TUR"]
[SourceTitle "playchess.com"]
[Source "ChessBase"]
[SourceQuality "1"]
[TimeControl "40/5400+30:1800+30"]

1. c4 Nf6 2. Nc3 e6 3. Nf3 d5 4. e3 b6 5. d4 Bd6 6. cxd5 exd5 7. g3 O-O 8. Bg2 Ba6 9. Ne5 c6 10. f4 Bb4 11. Qb3 c5 12. Bd2 {[%emt 0:25:00]} Bxc3 {[%emt 0:31:00]} 13. Bxc3 {[%emt 0:00:30]} Ne4 {[%emt 0:00:30]} 14. dxc5 {[%emt 0:02:30]} Nxc3 {[%emt 0:17:30]} 15. Qxc3 {[%emt 0:08:30]} Nd7 {[%emt 0:01:30]} 16. c6 {[%emt 0:11:30]} Nxe5 {[%emt 0:00:30]} 17. fxe5 {[%emt 0:00:30]} Rc8 {[%emt 0:06:30]} 18. Rd1 {[%emt 0:00:30]} Qc7 {[%emt 0:03:30]} 19. Bxd5 {[%emt 0:01:30]} Rfe8 {[%emt 0:00:30]} 20. e6 {[%emt 0:05:30]} fxe6 {[%emt 0:00:30]} 21. Be4 {[%emt 0:01:30]} Rf8 {[%emt 0:02:30]} 22. a4 {[%emt 0:09:30]} b5 {[%emt 0:02:30]} 23. a5 {[%emt 0:03:30]} b4 {[%emt 0:00:30]} 24. Qc5 {[%emt 0:01:30]} Rcd8 {[%emt 0:03:30]} 25. Rd2 {[%emt 0:06:30]} Qf7 {[%emt 0:00:30]} 26. Kd1 {[%emt 0:00:00]} b3 {[%emt 0:04:30]} 27. Rxd8 {[%emt 0:02:00]} Rxd8+ {[%emt 0:00:30]} 28. Kc1 {[%emt 0:00:30]} Be2 {[%emt 0:03:30]} 29. Qc3 {[%emt 0:06:30]} e5 {[%emt 0:00:30]} 30. Kb1 {[%emt 0:02:16]} Bc4 {[%emt 0:09:21]} 31. Rc1 {[%emt 0:00:58]} Bd5 {[%emt 0:00:05]} 32. Bxd5 {[%emt 0:04:01]} Qxd5 {[%emt 0:00:17]} 33. Qc4 {[%emt 0:00:59]} Qxc4 {[%emt 0:00:30]} 34. Rxc4 {[%emt 0:00:00]} Kf7 {[%emt 0:00:27]} 35. c7 {[%emt 0:00:22]} Rc8 {[%emt 0:00:30]} 36. Kc1 {[%emt 0:00:00]} 1-0